fUSD/lending_fUSD_20251109
["ID","MTS","AMOUNT","RATE_DAILY","PERIOD"]
[393454974,1762678255255,-478.20968403,0.000206,7]
[393454975,1762678255264,-162.61440694,0.00020667,2]
[393454976,1762678255275,-478.20968403,0.00020678,2]
[393454977,1762678255285,-22458.31516154,0.000207,2]
[393454978,1762678255294,-1498.39,0.0002074,2]
[393454979,1762678255304,-3292.0,0.00020794,2]
[393454980,1762678255315,-1000.0,0.00020795,2]
[393454981,1762678255324,-20000.0,0.00021,2]
[393454982,1762678255335,-902.60680742,0.00021,2]
[393454983,1762678255345,-1182.31615962,0.00021,2]
[393454984,1762678255354,-195.15798385,0.00021,2]
[393454985,1762678255363,-350.0,0.00021,2]
[393454986,1762678255374,-447.0,0.00021,2]
[393454987,1762678255383,-1498.39,0.00021014,2]
[393454988,1762678255395,-12399.31,0.00021068,2]
[393454989,1762678255405,-225.02878745,0.00021117,2]
[393454990,1762678255414,-478.20968403,0.000212,7]
[393454991,1762678255423,-698.95,0.00021205,2]
[393454992,1762678255435,-698.95,0.00021205,2]
[393454993,1762678255443,-477.41,0.00021205,2]
[393454994,1762678255453,-698.95,0.00021205,2]
[393454995,1762678255462,-477.41,0.00021205,2]
[393454996,1762678255472,-698.95,0.00021205,2]
[393454997,1762678255481,-527.44,0.00021205,2]
[393454998,1762678255491,-290.47,0.00021242,2]
[393454999,1762678255500,-698.95,0.0002126,2]
[393455000,1762678255511,-1498.39,0.00021288,2]
[393455001,1762678255522,-6316.24,0.0002137,2]
[393455002,1762678255531,-151.07,0.00021383,2]
[393455003,1762678255541,-353.78,0.00021412,2]
[393455004,1762678255551,-150.0,0.00021421,2]
[393455005,1762678255560,-698.95,0.00021425,2]
[393455006,1762678255570,-698.95,0.00021425,2]
[393455007,1762678255579,-1161.79199783,0.0002143,2]
[393455008,1762678255588,-156.203306,0.00021444,2]
[393455009,1762678255598,-1028.741315,0.00021444,2]
[393455010,1762678255607,-285.051956,0.00021444,2]
[393455011,1762678255616,-875.16678,0.00021444,2]
[393455012,1762678255626,-12270.3397201,0.0002145,2]
[393455013,1762678255635,-151.66,0.0002147,2]
[393455014,1762678255644,-150.0,0.0002147,2]
[393455015,1762678255654,-150.0,0.00021471,2]
[393455016,1762678255664,-150.0,0.00021471,2]
[393455017,1762678255674,-318.94,0.00021471,2]
[393455018,1762678255684,-300.0,0.00021471,2]
[393455019,1762678255693,-150.0,0.00021471,2]
[393455020,1762678255704,-150.0,0.00021471,2]
[393455021,1762678255712,-1804.0,0.00021471,2]
[393455022,1762678255722,-1205.93,0.00021471,2]
[393455023,1762678255732,-1205.93,0.00021471,2]
[393455024,1762678255742,-150.0,0.00021471,2]
[393455025,1762678255753,-1205.93,0.00021471,2]
[393455026,1762678255763,-150.0,0.00021471,2]
[393455027,1762678255773,-300.73,0.00021472,2]
[393455028,1762678255783,-300.0,0.00021472,2]
[393455029,1762678255792,-57446.01984656,0.000215,2]
[393455030,1762678255803,-220.0909528,0.000215,2]
[393455031,1762678255811,-1498.39,0.00021562,2]
[393455032,1762678255822,-178.62,0.00021639,2]
[393455033,1762678255832,-97247.9720369,0.00021645,2]
[393455034,1762678255842,-1498.39,0.00021836,2]
[393455035,1762678255851,-232.89,0.00021858,2]
[393455036,1762678255861,-478.20968403,0.000219,7]
[393455037,1762678255870,-5000.0,0.00021918,2]
[393455038,1762678255879,-800.0,0.00021918,4]
[393455039,1762678255889,-800.0,0.00021918,4]
[393455040,1762678255898,-800.0,0.00021918,4]
[393455041,1762678255908,-800.0,0.00021918,4]
[393455042,1762678255918,-800.0,0.00021918,4]
[393455043,1762678255927,-800.0,0.00021918,4]
[393455044,1762678255937,-800.0,0.00021918,4]
[393455045,1762678255946,-800.0,0.00021918,4]
[393455046,1762678255955,-800.0,0.00021918,4]
[393455047,1762678255964,-800.0,0.00021918,4]
[393455048,1762678255973,-800.0,0.00021918,4]
[393455049,1762678255983,-800.0,0.00021918,4]
[393455050,1762678255993,-800.0,0.00021918,4]
[393455051,1762678256002,-800.0,0.00021918,4]
[393455052,1762678256011,-800.0,0.00021918,4]
[393455053,1762678256023,-800.0,0.00021918,4]
[393455054,1762678256033,-800.0,0.00021918,4]
[393455055,1762678256043,-800.0,0.00021918,4]
[393455056,1762678256053,-800.0,0.00021918,4]
[393455057,1762678256062,-800.0,0.00021918,4]
[393455058,1762678256072,-500.0,0.00021918,2]
[393455059,1762678256083,-150.0,0.00021918,2]
[393455060,1762678256094,-250.0,0.00021969,2]
[393455061,1762678256103,-666.0,0.00021999,2]
[393455062,1762678256113,-666.0,0.00021999,2]
[393455063,1762678256123,-247640.88983916,0.00022,4]
[393455064,1762678256132,-4108.59202886,0.00022,2]
[393455065,1762678256142,-788.30218358,0.00022,7]
[393455066,1762678256152,-160.97,0.00022,2]
[393455067,1762678256162,-16723.59,0.00022,7]
[393455068,1762678256171,-157.090457,0.00022,7]
[393455069,1762678256181,-151.0,0.00022,7]
[393455070,1762678256190,-160.988925,0.00022,7]
[393455071,1762678256199,-151.0,0.00022,7]
[393455072,1762678256209,-151.0,0.00022,7]
[393455073,1762678256218,-151.0,0.00022,7]
[393455074,1762678256227,-151.0,0.00022,7]
[393455075,1762678256236,-151.0,0.00022,7]
[393455076,1762678256245,-151.0,0.00022,7]
[393455077,1762678256254,-295.884707,0.00022,7]
[393455078,1762678256264,-151.0,0.00022,7]
[393455079,1762678256273,-151.0,0.00022,7]
[393455080,1762678256282,-151.0,0.00022,7]
[393455081,1762678256291,-151.0,0.00022,7]
[393455082,1762678256300,-151.0,0.00022,7]
[393455083,1762678256309,-151.0,0.00022,7]
[393455084,1762678256318,-196.612946,0.00022,7]
[393455085,1762678256327,-151.0,0.00022,7]
[393455086,1762678256336,-151.0,0.00022,7]
[393455087,1762678256346,-158.356247,0.00022,7]
[393455088,1762678256355,-151.0,0.00022,7]
[393455089,1762678256364,-151.0,0.00022,7]
[393455090,1762678256374,-151.0,0.00022,7]
[393455091,1762678256383,-151.0,0.00022,7]
[393455092,1762678256392,-151.0,0.00022,7]
[393455093,1762678256401,-151.0,0.00022,7]
[393455094,1762678256411,-151.0,0.00022,7]
[393455095,1762678256420,-151.0,0.00022,7]
[393455096,1762678256429,-151.0,0.00022,7]
[393455097,1762678256438,-151.0,0.00022,7]
[393455098,1762678256448,-151.0,0.00022,7]
[393455099,1762678256457,-151.0,0.00022,7]
[393455100,1762678256467,-151.0,0.00022,7]
[393455101,1762678256476,-151.0,0.00022,7]
[393455102,1762678256486,-152.200048,0.00022,7]
[393455103,1762678256496,-151.0,0.00022,7]
[393455104,1762678256505,-151.0,0.00022,7]
[393455105,1762678256514,-151.0,0.00022,7]
[393455106,1762678256523,-151.0,0.00022,7]
[393455107,1762678256533,-151.569215,0.00022,7]
[393455108,1762678256542,-151.0,0.00022,7]
[393455109,1762678256551,-151.0,0.00022,7]
[393455110,1762678256561,-151.0,0.00022,7]
[393455111,1762678256569,-151.0,0.00022,7]
[393455112,1762678256579,-163.282938,0.00022,7]
[393455113,1762678256588,-153.618254,0.00022,7]
[393455114,1762678256598,-151.0,0.00022,7]
[393455115,1762678256607,-153.618254,0.00022,7]
[393455116,1762678256617,-151.0,0.00022,7]
[393455117,1762678256627,-151.0,0.00022,7]
[393455118,1762678256636,-151.0,0.00022,7]
[393455119,1762678256646,-153.618254,0.00022,7]
[393455120,1762678256655,-151.0,0.00022,7]
[393455121,1762678256666,-153.618254,0.00022,7]
[393455122,1762678256676,-151.0,0.00022,7]
[393455123,1762678256685,-151.0,0.00022,7]
[393455124,1762678256694,-257.799913,0.00022,7]
[393455125,1762678256703,-151.0,0.00022,7]
[393455126,1762678256712,-151.0,0.00022,7]
[393455127,1762678256723,-151.0,0.00022,7]
[393455128,1762678256734,-151.0,0.00022,7]
[393455129,1762678256743,-151.0,0.00022,7]
[393455130,1762678256753,-151.0,0.00022,7]
[393455131,1762678256767,-151.0,0.00022,7]
[393455132,1762678256776,-166.206026,0.00022,7]
[393455133,1762678256786,-151.0,0.00022,7]
[393455134,1762678256795,-151.0,0.00022,7]
[393455135,1762678256806,-151.0,0.00022,7]
[393455136,1762678256815,-212.837481,0.00022,7]
[393455137,1762678256825,-151.0,0.00022,7]
[393455138,1762678256836,-212.837481,0.00022,7]
[393455139,1762678256846,-212.837481,0.00022,7]
[393455140,1762678256856,-151.0,0.00022,7]
[393455141,1762678256965,-212.837481,0.00022,7]
[393455142,1762678256974,-176.199768,0.00022,7]
[393455143,1762678256983,-151.0,0.00022,7]
[393455144,1762678256992,-151.0,0.00022,7]
[393455145,1762678257002,-169.662431,0.00022,7]
[393455146,1762678257011,-151.0,0.00022,7]
[393455147,1762678257021,-169.22698,0.00022,7]
[393455148,1762678257030,-214.43224,0.00022,7]
[393455149,1762678257039,-199.703718,0.00022,7]
[393455150,1762678257048,-214.43224,0.00022,7]
[393455151,1762678257057,-214.43224,0.00022,7]
[393455152,1762678257066,-214.43224,0.00022,7]
[393455153,1762678257075,-151.0,0.00022,7]
[393455154,1762678257084,-151.0,0.00022,7]
[393455155,1762678257093,-206.496713,0.00022,7]
[393455156,1762678257102,-206.496713,0.00022,7]
[393455157,1762678257111,-206.496713,0.00022,7]
[393455158,1762678257121,-151.0,0.00022,7]
[393455159,1762678257130,-206.496713,0.00022,7]
[393455160,1762678257140,-151.0,0.00022,7]
[393455161,1762678257149,-151.0,0.00022,7]
[393455162,1762678257159,-241.346829,0.00022,7]
[393455163,1762678257168,-151.0,0.00022,7]
[393455164,1762678257177,-156.767732,0.00022,7]
[393455165,1762678257187,-151.0,0.00022,7]
[393455166,1762678257196,-151.0,0.00022,7]
[393455167,1762678257205,-151.0,0.00022,7]
[393455168,1762678257215,-151.0,0.00022,7]
[393455169,1762678257224,-151.0,0.00022,7]
[393455170,1762678257234,-151.0,0.00022,7]
[393455171,1762678257243,-151.0,0.00022,7]
[393455172,1762678257254,-284.01083,0.00022,7]
[393455173,1762678257263,-151.0,0.00022,7]
[393455174,1762678257272,-288.458231,0.00022,7]
[393455175,1762678257281,-153.227742,0.00022,7]
[393455176,1762678257291,-153.227742,0.00022,7]
[393455177,1762678257300,-153.227742,0.00022,7]
[393455178,1762678257314,-151.0,0.00022,7]
[393455179,1762678257330,-153.227749,0.00022,7]
[393455180,1762678257339,-151.0,0.00022,7]
[393455181,1762678257349,-151.0,0.00022,7]
[393455182,1762678257358,-187.260727,0.00022,7]
[393455183,1762678257367,-187.260727,0.00022,7]
[393455184,1762678257376,-187.260727,0.00022,7]
[393455185,1762678257385,-187.260728,0.00022,7]
[393455186,1762678257394,-296.193594,0.00022,7]
[393455187,1762678257404,-151.0,0.00022,7]
[393455188,1762678257414,-151.0,0.00022,7]
[393455189,1762678257423,-151.0,0.00022,7]
[393455190,1762678257432,-151.0,0.00022,7]
[393455191,1762678257441,-190.7792,0.00022,7]
[393455192,1762678257451,-151.0,0.00022,7]
[393455193,1762678257461,-684.140118,0.00022,7]
[393455194,1762678257471,-151.0,0.00022,7]
[393455195,1762678257480,-684.140118,0.00022,7]
[393455196,1762678257490,-684.140118,0.00022,7]
[393455197,1762678257500,-684.140125,0.00022,7]
[393455198,1762678257509,-151.0,0.00022,7]
[393455199,1762678257519,-151.0,0.00022,7]
[393455200,1762678257529,-1048.266309,0.00022,7]
[393455201,1762678257538,-1048.266309,0.00022,7]
[393455202,1762678257548,-1048.266309,0.00022,7]
[393455203,1762678257557,-151.0,0.00022,7]
[393455204,1762678257566,-151.0,0.00022,7]
[393455205,1762678257575,-1048.266313,0.00022,7]
[393455206,1762678257585,-151.0,0.00022,7]
[393455207,1762678257600,-151.0,0.00022,7]
[393455208,1762678257610,-151.0,0.00022,7]
[393455209,1762678257619,-281.786286,0.00022,7]
[393455210,1762678257629,-151.0,0.00022,7]
[393455211,1762678257638,-281.786286,0.00022,7]
[393455212,1762678257647,-166.784343,0.00022,7]
[393455213,1762678257656,-255.720552,0.00022,7]
[393455214,1762678257666,-158.424085,0.00022,7]
[393455215,1762678257676,-255.720552,0.00022,7]
[393455216,1762678257685,-281.786286,0.00022,7]
[393455217,1762678257695,-166.784343,0.00022,7]
[393455218,1762678257706,-255.720552,0.00022,7]
[393455219,1762678257718,-151.0,0.00022,7]
[393455220,1762678257727,-158.424085,0.00022,7]
[393455221,1762678257736,-281.786281,0.00022,7]
[393455222,1762678257746,-166.784343,0.00022,7]
[393455223,1762678257756,-255.720543,0.00022,7]
[393455224,1762678257767,-176.557812,0.00022,7]
[393455225,1762678257777,-649.096421,0.00022,7]
[393455226,1762678257787,-158.424085,0.00022,7]
[393455227,1762678257796,-166.784345,0.00022,7]
[393455228,1762678257807,-151.0,0.00022,7]
[393455229,1762678257815,-151.0,0.00022,7]
[393455230,1762678257825,-649.096421,0.00022,7]
[393455231,1762678257836,-241.372738,0.00022,7]
[393455232,1762678257845,-158.424084,0.00022,7]
[393455233,1762678257855,-151.0,0.00022,7]
[393455234,1762678257865,-151.0,0.00022,7]
[393455235,1762678257875,-241.372738,0.00022,7]
[393455236,1762678257884,-649.096421,0.00022,7]
[393455237,1762678257894,-274.514551,0.00022,7]
[393455238,1762678257904,-241.372738,0.00022,7]
[393455239,1762678257914,-649.096426,0.00022,7]
[393455240,1762678257923,-241.372742,0.00022,7]
[393455241,1762678257933,-688.396057,0.00022,7]
[393455242,1762678257942,-151.0,0.00022,7]
[393455243,1762678257952,-153.672612,0.00022,7]
[393455244,1762678257962,-688.396057,0.00022,7]
[393455245,1762678257971,-688.396057,0.00022,7]
[393455246,1762678257981,-688.396056,0.00022,7]
[393455247,1762678257991,-1031.362102,0.00022,7]
[393455248,1762678258000,-1031.362102,0.00022,7]
[393455249,1762678258011,-696.053668,0.00022,7]
[393455250,1762678258020,-1031.362102,0.00022,7]
[393455251,1762678258030,-696.053668,0.00022,7]
[393455252,1762678258039,-1031.362112,0.00022,7]
[393455253,1762678258048,-4451.081586,0.00022,7]
[393455254,1762678258057,-696.053668,0.00022,7]
[393455255,1762678258067,-4451.081586,0.00022,7]
[393455256,1762678258077,-151.0,0.00022,7]
[393455257,1762678258086,-151.0,0.00022,7]
[393455258,1762678258096,-158.34065,0.00022,7]
[393455259,1762678258105,-696.053671,0.00022,7]
[393455260,1762678258115,-4451.081586,0.00022,7]
[393455261,1762678258124,-4451.081592,0.00022,7]
[393455262,1762678258134,-158.133195,0.00022,7]
[393455263,1762678258143,-1035.014403,0.00022,7]
[393455264,1762678258153,-151.0,0.00022,7]
[393455265,1762678258163,-151.0,0.00022,7]
[393455266,1762678258172,-151.0,0.00022,7]
[393455267,1762678258182,-1035.014403,0.00022,7]
[393455268,1762678258192,-151.0,0.00022,7]
[393455269,1762678258201,-151.0,0.00022,7]
[393455270,1762678258211,-1035.014403,0.00022,7]
[393455271,1762678258220,-1035.014398,0.00022,7]
[393455272,1762678258230,-181.665505,0.00022,7]
[393455273,1762678258239,-181.665505,0.00022,7]
[393455274,1762678258249,-181.665505,0.00022,7]
[393455275,1762678258258,-181.665511,0.00022,7]
[393455276,1762678258267,-176.311602,0.00022,7]
[393455277,1762678258277,-176.311602,0.00022,7]
[393455278,1762678258286,-176.311602,0.00022,7]
[393455279,1762678258295,-176.311608,0.00022,7]
[393455280,1762678258305,-151.0,0.00022,7]
[393455281,1762678258315,-151.0,0.00022,7]
[393455282,1762678258324,-170.468976,0.00022,7]
[393455283,1762678258333,-170.468976,0.00022,7]
[393455284,1762678258343,-170.468976,0.00022,7]
[393455285,1762678258352,-995.65575,0.00022,7]
[393455286,1762678258363,-170.468975,0.00022,7]
[393455287,1762678258372,-995.65575,0.00022,7]
[393455288,1762678258381,-161.232217,0.00022,7]
[393455289,1762678258391,-995.65575,0.00022,7]
[393455290,1762678258399,-154.628871,0.00022,7]
[393455291,1762678258410,-154.628871,0.00022,7]
[393455292,1762678258420,-995.65575,0.00022,7]
[393455293,1762678258430,-2567.176262,0.00022,7]
[393455294,1762678258439,-154.628871,0.00022,7]
[393455295,1762678258449,-154.628871,0.00022,7]
[393455296,1762678258458,-2567.176262,0.00022,7]
[393455297,1762678258468,-191.059476,0.00022,7]
[393455298,1762678258477,-151.0,0.00022,7]
[393455299,1762678258490,-191.059476,0.00022,7]
[393455300,1762678258500,-2567.176262,0.00022,7]
[393455301,1762678258508,-191.059476,0.00022,7]
[393455302,1762678258518,-191.059476,0.00022,7]
[393455303,1762678258527,-2567.176262,0.00022,7]
[393455304,1762678258536,-151.0,0.00022,7]
[393455305,1762678258546,-336.546776,0.00022,7]
[393455306,1762678258555,-336.546776,0.00022,7]
[393455307,1762678258564,-1971.292487,0.00022,7]
[393455308,1762678258573,-154.029707,0.00022,7]
[393455309,1762678258582,-336.546776,0.00022,7]
[393455310,1762678258591,-336.546776,0.00022,7]
[393455311,1762678258600,-1971.292487,0.00022,7]
[393455312,1762678258610,-338.9931,0.00022,7]
[393455313,1762678258619,-1971.292487,0.00022,7]
[393455314,1762678258628,-1971.292487,0.00022,7]
[393455315,1762678258637,-338.9931,0.00022,7]
[393455316,1762678258647,-338.9931,0.00022,7]
[393455317,1762678258656,-298.153219,0.00022,7]
[393455318,1762678258665,-298.153219,0.00022,7]
[393455319,1762678258674,-338.9931,0.00022,7]
[393455320,1762678258684,-298.153219,0.00022,7]
[393455321,1762678258694,-298.153219,0.00022,7]
[393455322,1762678258703,-151.0,0.00022,7]
[393455323,1762678258713,-151.0,0.00022,7]
[393455324,1762678258723,-151.0,0.00022,7]
[393455325,1762678258733,-151.0,0.00022,7]
[393455326,1762678258742,-151.0,0.00022,7]
[393455327,1762678258751,-151.0,0.00022,7]
[393455328,1762678258765,-151.0,0.00022,7]
[393455329,1762678258774,-151.0,0.00022,7]
[393455330,1762678258784,-247.158504,0.00022,7]
[393455331,1762678258793,-151.0,0.00022,7]
[393455332,1762678258802,-151.0,0.00022,7]
[393455333,1762678258929,-238.162872,0.00022,7]
[393455334,1762678258940,-151.0,0.00022,7]
[393455335,1762678258950,-151.0,0.00022,7]
[393455336,1762678258959,-438.53661058,0.00022055,2]
[393455337,1762678258968,-232.89,0.00022072,2]
[393455338,1762678258977,-489.91636949,0.000221,2]
[393455339,1762678258987,-238.05488233,0.0002211,2]
[393455340,1762678258996,-1498.47360344,0.0002211,2]
[393455341,1762678259006,-290.47,0.00022127,2]
[393455342,1762678259016,-303.18,0.00022192,2]
[393455343,1762678259025,-2737.8828668,0.0002222,2]
[393455344,1762678259035,-698.95,0.00022247,2]
[393455345,1762678259045,-698.95,0.00022247,2]
[393455346,1762678259055,-698.95,0.00022247,2]
[393455347,1762678259065,-954.24,0.00022247,2]
[393455348,1762678259076,-698.95,0.00022247,2]
[393455349,1762678259085,-698.95,0.00022247,2]
[393455350,1762678259095,-1275.21,0.00022247,2]
[393455351,1762678259105,-150.0,0.00022293,2]
[393455352,1762678259115,-151.3,0.00022293,2]
[393455353,1762678259125,-1205.93,0.00022293,2]
[393455354,1762678259135,-369.92,0.00022293,2]
[393455355,1762678259145,-1205.93,0.00022293,2]
[393455356,1762678259155,-1205.93,0.00022293,2]
[393455357,1762678259165,-1387.43,0.00022293,2]
[393455358,1762678259174,-1232.06,0.00022293,2]
[393455359,1762678259185,-944.71,0.00022293,2]
[393455360,1762678259198,-668.92,0.00022293,2]
[393455361,1762678259208,-353.86,0.00022293,2]
[393455362,1762678259218,-176.98,0.00022293,2]
[393455363,1762678259227,-176.98,0.00022293,2]
[393455364,1762678259237,-176.98,0.00022293,2]
[393455365,1762678259251,-177.01,0.00022293,2]
[393455366,1762678259262,-176.98,0.00022293,2]
[393455367,1762678259272,-180.14,0.00022293,2]
[393455368,1762678259282,-176.98,0.00022293,2]
[393455369,1762678259291,-176.98,0.00022293,2]
[393455370,1762678259302,-177.01,0.00022293,2]
[393455371,1762678259312,-226.62,0.00022293,2]
[393455372,1762678259322,-150.0,0.00022294,2]
[393455373,1762678259331,-150.0,0.00022294,2]
[393455374,1762678259341,-150.0,0.00022294,2]
[393455375,1762678259353,-150.0,0.00022294,2]
[393455376,1762678259369,-2000.0,0.000223,2]
[393455377,1762678259379,-150.0,0.00022301,2]
[393455378,1762678259388,-150.0,0.00022301,2]
[393455379,1762678259398,-150.0,0.00022301,2]
[393455380,1762678259411,-150.0,0.00022301,2]
[393455381,1762678259420,-1000.0,0.00022393,2]
[393455382,1762678259429,-1152.0,0.00022403,2]
[393455383,1762678259438,-21698.9555747,0.00022458,2]
[393455384,1762678259448,-35167.40568972,0.000225,2]
[393455385,1762678259457,-350.0,0.00022517,2]
[393455386,1762678259467,-518.07823043,0.0002271,2]
[393455387,1762678259476,-502.0,0.00022795,2]
[393455388,1762678259487,-200.0,0.000228,2]
[393455389,1762678259497,-4609.0,0.00022858,2]
[393455390,1762678259506,-666.0,0.00022894,2]
[393455391,1762678259516,-19206.34413281,0.000229,2]
[393455392,1762678259526,-162.61440694,0.00022963,2]
[393455393,1762678259535,-574.0,0.00022966,2]
[393455394,1762678259544,-608.0,0.00022966,2]
[393455395,1762678259554,-1316.0,0.00022966,2]
[393455396,1762678259563,-3425.0,0.00022966,2]
[393455397,1762678259573,-1596.0,0.00022966,2]
[393455398,1762678259582,-820.0,0.00022966,2]
[393455399,1762678259591,-1273.0,0.00022966,2]
[393455400,1762678259605,-813.0,0.00022966,2]
[393455401,1762678259615,-2142.0,0.00022966,2]
[393455402,1762678259624,-559.0,0.00022966,2]
[393455403,1762678259635,-6478.0,0.00022966,2]
[393455404,1762678259644,-594.84729005,0.00022968,2]
[393455405,1762678259654,-628.37975426,0.00023,7]
[393455406,1762678259664,-435.60836925,0.00023,2]
[393455407,1762678259673,-997.88219368,0.00023,2]
[393455408,1762678259682,-400.0,0.00023,2]
[393455409,1762678259691,-290.47,0.00023012,2]
[393455410,1762678259701,-169.14,0.00023058,2]
[393455411,1762678259710,-450.0,0.00023065,2]
[393455412,1762678259719,-150.0,0.00023071,2]
[393455413,1762678259729,-150.0,0.00023071,2]
[393455414,1762678259740,-150.0,0.00023071,2]
[393455415,1762678259749,-150.0,0.00023071,2]
[393455416,1762678259762,-150.0,0.00023071,2]
[393455417,1762678259772,-150.0,0.00023071,2]
[393455418,1762678259781,-150.0,0.00023071,2]
[393455419,1762678259790,-150.0,0.00023071,2]
[393455420,1762678259803,-150.0,0.00023071,2]
[393455421,1762678259812,-150.0,0.00023071,2]
[393455422,1762678259821,-2560.76924219,0.000231,2]
[393455423,1762678259832,-169.11,0.00023114,2]
[393455424,1762678259842,-353.96,0.00023115,2]
[393455425,1762678259851,-176.98,0.00023115,2]
[393455426,1762678259861,-176.98,0.00023115,2]
[393455427,1762678259872,-176.98,0.00023115,2]
[393455428,1762678259881,-176.98,0.00023115,2]
[393455429,1762678259890,-176.71,0.00023115,2]
[393455430,1762678259901,-1418.3,0.00023123,2]
[393455431,1762678259912,-156.203306,0.00023165,2]
[393455432,1762678259927,-1028.741315,0.00023165,2]
[393455433,1762678259941,-160.435951,0.00023165,2]
[393455434,1762678259960,-285.051956,0.00023165,2]
[393455435,1762678259969,-875.16678,0.00023165,2]
[393455436,1762678259979,-169.580276,0.00023165,2]
[393455437,1762678259988,-165.866193,0.00023165,2]
[393455438,1762678259998,-671.15214123,0.00023199,2]
[393455439,1762678260008,-51668.18922415,0.000232,2]
[393455440,1762678260019,-1260.55,0.0002326,2]
[393455441,1762678260029,-500.0,0.00023288,2]
[393455442,1762678260039,-225.02878745,0.00023389,2]
[393455443,1762678260049,-500.0,0.00023425,2]
[393455444,1762678260059,-500.0,0.00023464,2]
[393455445,1762678260069,-500.0,0.00023464,2]
[393455446,1762678260078,-500.0,0.00023464,2]
[393455447,1762678260087,-23854.61,0.0002348,2]
[393455448,1762678260097,-200.0,0.000235,2]
[393455449,1762678260106,-16723.59,0.000235,7]
[393455450,1762678260116,-151.0,0.000235,7]
[393455451,1762678260125,-151.0,0.000235,7]
[393455452,1762678260135,-151.0,0.000235,7]
[393455453,1762678260145,-206.079177,0.000235,7]
[393455454,1762678260154,-151.0,0.000235,7]
[393455455,1762678260164,-203.527445,0.000235,7]
[393455456,1762678260175,-151.0,0.000235,7]
[393455457,1762678260185,-151.0,0.000235,7]
[393455458,1762678260195,-159.705595,0.000235,7]
[393455459,1762678260204,-151.0,0.000235,7]
[393455460,1762678260214,-151.0,0.000235,7]
[393455461,1762678260224,-156.109993,0.000235,7]
[393455462,1762678260233,-151.0,0.000235,7]
[393455463,1762678260242,-151.0,0.000235,7]
[393455464,1762678260252,-151.0,0.000235,7]
[393455465,1762678260261,-151.0,0.000235,7]
[393455466,1762678260271,-151.0,0.000235,7]
[393455467,1762678260280,-151.0,0.000235,7]
[393455468,1762678260289,-185.1304,0.000235,7]
[393455469,1762678260299,-151.0,0.000235,7]
[393455470,1762678260308,-151.0,0.000235,7]
[393455471,1762678260317,-151.0,0.000235,7]
[393455472,1762678260327,-151.0,0.000235,7]
[393455473,1762678260336,-151.0,0.000235,7]